Cogmind - Beta 12 @@@ ROGUE MODE // 2023.04.21 @ 09:04:37 Player: ZLD1 Result: Destroyed by S-10 Pest with Light Assault Rifle Performance ------------- Evolutions (1) 500 Regions Visited (4) 800 Robots Destroyed (39) 195 Value Destroyed (889) 889 Prototype IDs (2) 40 Alien Tech Used (0) 0 Bonus (0) 0 TOTAL SCORE: 2424 Bonus ------- None Cogmind --------- Core Integrity 0/400 Matter 201/300 Energy 280/280 System Corruption 7% Temperature Cool (0) Movement Walking (260) Ox2 Location -9/Storage Parts ------- > --- POWER (1) -------- Heavy Ion Engine > --- PROPULSION (2) --- Aluminum Leg > --- UTILITY (4) ------ Medium Storage Unit Signal Interpreter Targeting Computer Targeting Computer > --- WEAPON (2) ------- Improved Light Cannon > --- INVENTORY (10) --- Ion Engine Heavy Ion Engine Light Nuclear Core Aluminum Leg Medium Storage Unit Propulsion Shielding Flail Flail Heavy Hammer Heavy Hammer Peak State ------------ > --- POWER ------------ Heavy Ion Engine > --- PROPULSION ------- Aluminum Leg Aluminum Leg > --- UTILITY ---------- Medium Storage Unit Targeting Computer Targeting Computer Propulsion Shielding > --- WEAPON ----------- Improved Light Cannon Improved Light Cannon > --- INVENTORY -------- Ion Engine Heavy Ion Engine Light Nuclear Core Medium Storage Unit Light Assault Rifle Grenade Launcher Heavy Hammer Heavy Hammer [Rating: 14] Favorites ----------- Power Light Ion Engine Engine Light Ion Engine Propulsion Aluminum Leg Leg Aluminum Leg Flight Unit Improved Flight Unit Utility Medium Storage Unit Device Terrain Scanner Storage Medium Storage Unit Processor Targeting Computer Protection Propulsion Shielding Weapon Improved Light Cannon Ballistic Gun Assault Rifle Ballistic Cannon Improved Light Cannon Build | -11 -10 -10 -9 -9 ------- Run | Jun Mat Min Mat Sto Slots Evolved 2 | . . . 2 . Power . | . . . . . Propulsion . | . . . . . Utility 2 | . . . 2 . Weapon . | . . . . . Parts Attached 29 | 6 7 4 12 . Power 6 | 1 2 2 1 . Engine 6 | 1 2 2 1 . Core . | . . . . . Reactor . | . . . . . Propulsion 8 | 2 1 1 4 . Treads . | . . . . . Leg 7 | 2 1 1 3 . Wheel . | . . . . . Hover . | . . . . . Flight 1 | . . . 1 . Utility 8 | 1 1 1 5 . Device 1 | . . . 1 . Storage 2 | 1 1 . . . Processor 3 | . . 1 2 . Hackware . | . . . . . Protection 2 | . . . 2 . Artifact . | . . . . . Weapon 7 | 2 3 . 2 . Energy Gun . | . . . . . Energy Cannon . | . . . . . Ballistic Gun 3 | 2 1 . . . Ballistic Cannon 4 | . 2 . 2 . Launcher . | . . . . . Special Weapon . | . . . . . Impact Weapon . | . . . . . Slashing Weapon . | . . . . . Piercing Weapon . | . . . . . Special Melee Weapon . | . . . . . Unidentified Prototypes 2 | . . . 2 . Parts Lost 8 | . 3 . 3 2 Power 3 | . 2 . 1 . Propulsion 2 | . 1 . . 1 Utility . | . . . . . Weapon 3 | . . . 2 1 Highest Loss Streak 3 | . 2 . 3 2 To Critical Strikes 1 | . 1 . . . Average Slot Usage (%) 86 | . 79 86 87 100 Engine 12 | . 11 14 10 11 Leg 25 | . 23 28 21 22 Storage 13 | . 15 14 11 11 Processor 7 | . . 1 19 33 Ballistic Gun 3 | . 19 . . . Ballistic Cannon 23 | . 8 28 22 22 Naked Turns . | . . . . . Heaviest Build 27 | 11 26 21 27 26 Greatest Support 20 | 20 20 20 20 20 Greatest Overweight (x) 2 | . 1 1 2 2 Average Overweight (x) . | . . 1 . 1 Largest Inventory Capacity 10 | 8 10 10 10 10 Average Capacity 9 | 6 8 10 10 10 Most Carried 10 | 5 9 10 10 10 Average Carried 8 | 1 3 9 9 10 Final Capacity 10 | 8 10 10 10 10 Final Carried 10 | 1 9 10 10 10 Class Distribution -------------------- 100% | Mutant Dominant Class ---------------- Mutant | -10/Materials Mutant | -10/Mines Mutant | -9/Materials Mutant | -9/Storage Resources | -11 -10 -10 -9 -9 ----------- Run | Jun Mat Min Mat Sto Matter Collected 915 | 203 202 174 316 20 Remotely . | . . . . . Salvage Created 1110 | . 413 157 452 88 Parts 75 | . 18 15 32 10 Haulers Intercepted 1 | . . . 1 . Recyclers Shooed 2 | . . . 2 . Parts Field Recycled . | . . . . . Retrieved Matter . | . . . . . Parts Self-Destructed . | . . . . . Prevented . | . . . . . Kills | -11 -10 -10 -9 -9 ------- Run | Jun Mat Min Mat Sto Combat Hostiles Destroyed 29 | . 8 7 10 4 Guns 6 | . 6 . . . Cannons 23 | . 2 7 10 4 Classes Destroyed 9 | . 4 2 3 . Builder 2 | . . 1 1 . Hauler 1 | . . . 1 . Recycler 4 | . 2 . 2 . Operator 1 | . 1 . . . Watcher 2 | . . . 1 1 Swarmer 12 | . 3 3 3 3 Grunt 10 | . 5 2 3 . Brawler 1 | . . . 1 . Sentry 6 | . . 2 3 1 Best Kill Streak 7 | . 7 3 5 5 Combat Bots Only 5 | . 5 3 4 4 Max Kills in Single Turn 2 | . 2 1 2 1 Gunslinging . | . . . . . Exploded . | . . . . . Melee . | . . . . . Uniques/NPCs Destroyed . | . . . . . Combat | -11 -10 -10 -9 -9 -------- Run | Jun Mat Min Mat Sto Damage Taken 2223 | . 604 349 882 388 Core 633 | . 117 109 310 97 Absorbed by Shields . | . . . . . Core Remaining (%) 54 | 100 . 9 . . Volleys Fired 84 | . 31 18 26 9 Largest 2 | . 2 2 2 2 Hottest 78 | . 78 78 78 78 Shots Fired 167 | . 62 36 52 17 Gun 58 | . 58 . . . Cannon 109 | . 4 36 52 17 Launcher . | . . . . . Special . | . . . . . Kinetic 167 | . 62 36 52 17 Thermal . | . . . . . Explosive . | . . . . . Electromagnetic . | . . . . . Robot Hit Streak 18 | . 18 6 16 5 Robot Miss Streak 3 | . 2 3 3 2 Penetration Max . | . . . . . Secondary Targets 1 | . 1 . . . Max Gunslinging Chain 1 | . 1 . . . Shots Hit Robots 114 | . 47 23 34 10 Core Hits 52 | . 20 12 15 5 Critical Kills . | . . . . . Critical Parts Destroyed . | . . . . . Critical Strikes 5 | . . 1 3 1 Blast 5 | . . 1 3 1 Melee Attacks . | . . . . . Impact . | . . . . . Slashing . | . . . . . Piercing . | . . . . . Sneak Attacks . | . . . . . Combat Hostiles . | . . . . . Follow-up Attacks . | . . . . . Damage Inflicted 2008 | . 533 511 759 205 Guns 461 | . 461 . . . Cannons 1524 | . 67 495 757 205 Explosions . | . . . . . Melee . | . . . . . Ramming 23 | . 5 16 2 . Kinetic 1985 | . 528 495 757 205 Thermal . | . . . . . Explosive . | . . . . . Electromagnetic . | . . . . . Impact . | . . . . . Slashing . | . . . . . Piercing . | . . . . . Highest Corruption 7 | . . . 7 7 Average Corruption 6 | . . . 6 7 Corruption Purged . | . . . . . Corruption Blocked . | . . . . . Effects 13 | . . . 11 2 Message Errors 2 | . . . 1 1 Matter Fused 3 | . . . 3 . Energy Discharges 2 | . . . 2 . Data Loss (minor) 2 | . . . 2 . Data Loss (major) 3 | . . . 2 1 Misfires 1 | . . . 1 . Overload Shots . | . . . . . Overflow Damage 1 | . . . 1 . Projectiles 1 | . . . 1 . Explosions . | . . . . . Melee . | . . . . . Knockbacks 11 | . . 3 6 2 Impact . | . . . . . Kinetic 11 | . . 3 6 2 Secondary . | . . . . . Self-Inflicted Damage . | . . . . . Shots . | . . . . . Rammed . | . . . . . Targets Rammed 7 | . 1 4 2 . Kicked 7 | . 1 4 2 . Crushed . | . . . . . Highest Temperature 178 | . 33 178 105 101 Average Temperature 37 | . 10 59 28 44 Received Heat Transfer 630 | . 300 123 138 69 Siege Activations . | . . . . . Robots Corrupted . | . . . . . Combat Hostiles . | . . . . . Parts Fried . | . . . . . Impact Corruptions . | . . . . . Robots Melted . | . . . . . Combat Hostiles . | . . . . . Parts Melted . | . . . . . Heat Transferred . | . . . . . Parts Sabotaged . | . . . . . Parts Stolen . | . . . . . Parts Stripped . | . . . . . Power Chain Reactions . | . . . . . Missiles Intercepted . | . . . . . Alert | -11 -10 -10 -9 -9 ------- Run | Jun Mat Min Mat Sto Peak Influence 196 | . 195 125 196 181 Initial 82 | . . 75 . 82 Average 69 | . 93 60 77 103 Maximum Alert Level . | . . . . . Low Security (%) 100 | 100 100 100 100 100 Level 1 . | . . . . . Level 2 . | . . . . . Level 3 . | . . . . . Level 4 . | . . . . . Level 5 . | . . . . . High Security . | . . . . . Max Security . | . . . . . Squads Dispatched 5 | . 1 . 3 1 Investigation 1 | . . . 1 . Extermination . | . . . . . Reinforcement 4 | . 1 . 2 1 Assault . | . . . . . Garrison . | . . . . . Intercept . | . . . . . Searches Triggered . | . . . . . Construction Impeded . | . . . . . Haulers Reinforced . | . . . . . Active Scanning Responses . | . . . . . Cargo Convoy Interrupts . | . . . . . Stealth | -11 -10 -10 -9 -9 --------- Run | Jun Mat Min Mat Sto Distress Signals 7 | . 1 . 5 1 Communications Jammed . | . . . . . Distress Signals . | . . . . . Times Spotted 42 | . 9 7 17 9 Peak Tracking Total 8 | . 3 3 5 8 Tactical Retreats 2 | . . . 2 . Traps | -11 -10 -10 -9 -9 ------- Run | Jun Mat Min Mat Sto Traps Triggered 1 | . . . 1 . Indirectly . | . . . . . Trap Hack Attempts . | . . . . . Triggered . | . . . . . Disarmed . | . . . . . Reprogrammed . | . . . . . Reused . | . . . . . Traps Extracted . | . . . . . Installed . | . . . . . Triggered . | . . . . . Machines | -11 -10 -10 -9 -9 ---------- Run | Jun Mat Min Mat Sto Machines Disabled . | . . . . . Max in Single Turn . | . . . . . Machines Repaired . | . . . . . Machines Sabotaged . | . . . . . Overloaded Fab Kills . | . . . . . Hacking | -11 -10 -10 -9 -9 --------- Run | Jun Mat Min Mat Sto Machines Accessed 6 | . 2 . 3 1 Terminals 6 | . 2 . 3 1 Fabricators . | . . . . . Repair Stations . | . . . . . Recycling Units . | . . . . . Scanalyzers . | . . . . . Garrison Access . | . . . . . Total Hacks 12 | . 3 . 6 3 Successful 7 | . 2 . 2 3 Failed 5 | . 1 . 4 . Catastrophic . | . . . . . Database Lockouts . | . . . . . Manual . | . . . . . Terminals 12 | . 3 . 6 3 Fabricators . | . . . . . Repair Stations . | . . . . . Recycling Units . | . . . . . Scanalyzers . | . . . . . Garrison Access . | . . . . . Terminal Hacks 7 | . 2 . 2 3 Emergency Access Points 1 | . . . . 1 Alert Level 1 | . . . . 1 Locate Traps 1 | . . . . 1 Zone Layout 4 | . 2 . 2 . Fabricator Hacks . | . . . . . Repair Station Hacks . | . . . . . Recycling Unit Hacks . | . . . . . Scanalyzer . | . . . . . Garrison Access Hacks . | . . . . . Unauthorized Hacks . | . . . . . Terminals . | . . . . . Fabricators . | . . . . . Repair Stations . | . . . . . Recycling Units . | . . . . . Scanalyzers . | . . . . . Garrison Access . | . . . . . Data Cores Recovered . | . . . . . Used . | . . . . . Hacking Detections 2 | . 1 . 1 . Full Trace Events 1 | . . . 1 . Feedback Events . | . . . . . Feedback Blocked . | . . . . . Robot Schematics Acquired . | . . . . . Robots Built . | . . . . . Authchips . | . . . . . Time . | . . . . . Total Robot Build Rating . | . . . . . Part Schematics Acquired . | . . . . . Parts Built . | . . . . . Authchips . | . . . . . Time . | . . . . . Total Part Build Rating . | . . . . . Parts Repaired . | . . . . . Time . | . . . . . Parts Recycled . | . . . . . Recycled Matter . | . . . . . Retrieved Matter . | . . . . . Retrieved Components . | . . . . . Parts Scanalyzed . | . . . . . Part Schematics Acquired . | . . . . . Parts Damaged . | . . . . . Bothacking | -11 -10 -10 -9 -9 ------------ Run | Jun Mat Min Mat Sto Used RIF Installer . | . . . . . Robots Hacked . | . . . . . Non-combat . | . . . . . Combat . | . . . . . Robot Hacks Applied . | . . . . . Relay Couplers Released . | . . . . . Fabnet Peak Effective % . | . . . . . Robots Rewired . | . . . . . Allies Hacked . | . . . . . Hacks Repelled . | . . . . . Allies | -11 -10 -10 -9 -9 -------- Run | Jun Mat Min Mat Sto Total Allies . | . . . . . Largest Group . | . . . . . Highest-Rated Group . | . . . . . Highest-Rated Ally . | . . . . . Total Orders . | . . . . . Ally Attacks . | . . . . . Total Damage . | . . . . . Kills . | . . . . . Allies Corrupted . | . . . . . Allies Melted . | . . . . . Intel | -11 -10 -10 -9 -9 ------- Run | Jun Mat Min Mat Sto Robot Analysis Total . | . . . . . Derelict Logs Recovered . | . . . . . Drone Launches . | . . . . . Drone Recoveries . | . . . . . Exploration | -11 -10 -10 -9 -9 ------------- Run | Jun Mat Min Mat Sto Turns Passed 2386 | 77 356 1223 628 102 Spaces Moved 1135 | 61 171 600 263 40 Core 12 | 12 . . . . Treads . | . . . . . Legs 1123 | 49 171 600 263 40 Wheels . | . . . . . Hover . | . . . . . Flight . | . . . . . Fastest Speed 50 | 50 120 190 120 190 Average Speed 177 | 106 135 190 189 191 Slowest Speed 260 | 120 190 190 260 260 Overloaded Moves . | . . . . . Propulsion Burnouts . | . . . . . Robots Hopped . | . . . . . Cave-ins Triggered 1 | . . . 1 . Exploration Rate (%) 33 | 3 29 81 37 15 Regions Visited 4 Branch Regions 2 Pre-discovered Areas 1 | . . 1 . . Known Exits Taken 1 | . . . 1 . Unknown Exits Taken 3 | 1 1 1 . . Scrap Searched 1 | . . 1 . . Spaces Dug . | . . . . . Terrain Destroyed 3 | . . 1 2 . Melee . | . . . . . Projectile 3 | . . 1 2 . AOE . | . . . . . Terrain Rammed . | . . . . . Walls Destroyed . | . . . . . Machines Disabled . | . . . . . Actions | -11 -10 -10 -9 -9 --------- Run | Jun Mat Min Mat Sto Total 1348 | 73 240 644 342 49 Wait 51 | . 16 12 23 . Move 1131 | 60 170 599 262 40 Hop . | . . . . . Pick Up 33 | 7 13 3 10 . Fast Attach 4 | . 1 1 2 . Attach 17 | 6 5 . 6 . Detach . | . . . . . Swap 8 | . 1 3 4 . Drop 13 | . 2 4 7 . Fire 84 | . 31 18 26 9 Melee . | . . . . . Ram . | . . . . . Kick 7 | . 1 4 2 . Crush . | . . . . . Escape Stasis . | . . . . . Rewire . | . . . . . Trap . | . . . . . Miscellaneous . | . . . . . Route ------- -11/Junkyard -10/Materials -10/Mines -9/Materials (discovered 2 exits: *Min / *Sto) -9/Storage History --------- Turn | Location | Event 39 | -11/Junkyard | Discovered new exit (range 12) 78 | -11/Junkyard | Entered Materials 304 | -10/Materials | Build established: Mutant 387 | -10/Materials | Discovered new exit (range 12) 434 | -10/Materials | Entered Mines 643 | -10/Mines | Core integrity fell below 50% 721 | -10/Mines | Learned location of Storage (-9) 1053 | -10/Mines | Received a Rocket Launcher from a helpful Derelict 1334 | -10/Mines | Discovered new exit (range 11) 1534 | -10/Mines | Core integrity fell below 20% 1657 | -10/Mines | Entered Materials 1657 | -9/Materials | Evolved 2 slots: Utility x2 1875 | -9/Materials | Crushed by falling debris 1875 | -9/Materials | Core integrity fell below 50% 1906 | -9/Materials | Lost 3 parts (1p2w) 2004 | -9/Materials | Discovered new exit (range 12) 2104 | -9/Materials | Identified exit to Mines 2127 | -9/Materials | Discovered new exit (range 18) 2284 | -9/Materials | Identified exit to Storage 2285 | -9/Materials | Entered Storage 2357 | -9/Storage | Core integrity fell below 20% 2387 | -9/Storage | Destroyed by S-10 Pest with Light Assault Rifle Last Messages --------------- 02357_ K-01 Serf collects debris. 02360_ S-10 Pest destroyed. 02363_ D|1CWMVLAJ36H=3VZUA|4VU M>>U%WU 02363_ K-01 Serf collects debris. 02363_ Y-45 Defender destroyed. 02364_ K-01 Serf collects debris. 02366_ S-10 Pest knocked back. 02366_ S-10 Pest destroyed. 02368_ K-01 Serf collects debris. 02372_ S-10 Pest destroyed. 02375_ K-01 Serf collects debris. 02379_ S-10 Pest knocked back. 02380_ ALERT: Hostiles spotted, dispatching reinforcements to Terminal S003. 02380_ K-01 Serf collects debris. 02382_ Imp. Light Cannon destroyed. 02382_ K-01 Serf collects debris. 02384_ Y-45 Defender Lgt. Treads blasted off. 02385_ Aluminum Leg destroyed. 02385_ K-01 Serf collects debris. Map ----- +----------------------------------------------------+ | ??????????# #???????????????????? | | ??????????# #???????????????????? | | ??????????# #???????????????????? | | ??????????######+#### #???????????????????? | | ?????????????? ?## ##########???????????? | | ?????????????# """ ## # ???????????? | | ?????????????# """ ## # """ """ #??????????? | | ?????????????# """ ## # "T" """ #??????????? | | ?????????????# ## # """ #??????????? | | ?????????????# ## +^ #??????????? | | ?????????????# !!| ## # #??????????? | | ?????????????# !| ## # =| #??????????? | | ??????????????? !|? ## # | #??????????? | | ?????????????????????# ###########??????????? | | ?????????????????????# #????????????????????? | | ?????????????????????# #????????????????????? | | ?????????????????????# #????????????????????? | | ???????????########### #????????????????????? | | ???????????# [ # #????????????????????? | | ?????????#"" + #????????????????????? | | ??????????"" """ """ # %#####+#####??????????? | | ??????????????"" """ #%== # ""???????? | | ?????????????""" """*#=%! % + ??????? | | ??????????"" =/%Ys= #??????????? | | ???????????# ##/############??????????? | | ??????????# ??#@%*k #?????????????????? | | ??????????#####+##???# ! ! #?????????????????? | | ??????????????? ?????#%! #?????????????????? | | ?????????????????????#! #?????????????????? | | ?????????????????????####+###?????????????????? | | ??????????????????????????????????????????????? | | ??????????????????????????????????????????????? | | ??????????????????????????????????????????????? | | ??????????????????????????????????????????????? | | ??????????????????????????????????????????????? | | ??????????????????????????????????????????????? | | ??????????????????????????????????????????????? | | ??????????????????????????????????????????????? | | ??????????????????????????????????????????????? | | ??????????????????????????????????????????????? | | ??????????????????????????????????????????????? | | ??????????????????????????????????????????????? | | ??????????????????????????????????????????????? | | ??????????????????????????????????????????????? | | ??????????????????????????????????????????????? | | ??????????????????????????????????????????????? | | ??????????????????????????????????????????????? | | ??????????????????????????????????????????????? | | ??????????????????????????????????????????????? | | ??????????????????????????????????????????????? | +----------------------------------------------------+ Best States ------------- Heat Dissipation 28 Energy Generation 14 Energy Capacity 280 Matter Stores 300 Matter Capacity 300 Sight Range 16 Terrain Scan Density 10 Propulsion Shielding 33 Evasion (%) 55 Targeting Accuracy 10 Item Schematics ----------------- None Robot Schematics ------------------ None Fabricated ------------ Nothing Alien Tech Used ----------------- None Achievements -------------- None Challenges ------------ None Game ------ Seed MediumSplicePlating Manual? 0 Play Time 00:16:12 Cumulative 39.1 hours Start 2023.04.21 @ 08:45:02 End 2023.04.21 @ 09:04:37 Sessions 1 Manual Loads 0 Difficulty Rogue Special Mode None Game No. 90 Rogue 90 Adventurer 0 Explorer 0 Win Type - Total 0 Types 0/0/0/0/0/0/0/0/0 Lore% 24 Gallery% 39 Achievement% 29 Wizard Run 0 Options --------- ASCII 0 Keyboard 0 Movement Mouse Keybinds 0 Fullscreen 1 Font 24/Smallcaps Map View 64x52 Tactical HUD 1 Map Filters NONE Filters NONE Steam 1 RUN: e06ac9da-1ac3-48be-9696-c2f6d7a8b682